[Event "Budapest Chess Festival 2024"]
[Site "Budapest"]
[Date "2024.05.29"]
[Round "7.9"]
[White "Haring, Filip"]
[Black "Aizenberg, Benny"]
[Result "1-0"]
[ECO "B94"]
[WhiteElo "2484"]
[BlackElo "2403"]
[Annotator "TA"]
[PlyCount "89"]
[EventDate "2024.05.20"]
[EventType "swiss"]
[EventCountry "HUN"]
[SourceTitle "playchess.com"]
[Source "ChessBase"]
[SourceQuality "1"]
[TimeControl "40/5400+30:1800+30"]

{[%evp 13,89,18,46,26,50,-16,46,0,28,39,27,29,89,85,78,79,76,57,58,60,70,57,83,28,30,25,86,0,0,-7,40,-60,104,0,199,204,370,370,526,505,685,666,806,806,752,401,475,488,466,0,310,317,312,312,319,319,319,310,614,600,1016,981,961,733,1102,1156,29955,1301,29984,29984,29987,29984,29984,29985,29985,29985,29985,29986]} 1. e4 {[%emt 0:00:36]} c5 {[%emt 0:00:34]} 2. Nf3 {[%emt 0:00:07]} d6 {[%emt 0:00:05]} 3. d4 {[%emt 0:00:15]} cxd4 {[%emt 0:00:03]} 4. Nxd4 {[%emt 0:00:07]} Nf6 {[%emt 0:00:04]} 5. Nc3 {[%emt 0:00:09]} a6 {[%emt 0:00:05]} 6. Bg5 {[%emt 0:00:58]} Nbd7 {[%emt 0:00:07]} 7. Qe2 {[%emt 0:02:14] B94: Sicilian Najdorf: 6 Bg5 Nbd7.} g6 {[%emt 0:09:43]} 8. f4 {[%emt 0:12:37]} e5 {[%emt 0:01:13] [#]} 9. O-O-O {[%emt 0:11:07]} ({Better is} 9. fxe5 $1 $14 dxe5 10. Nb3) 9... Qc7 {[%emt 0:03:23]} (9... exd4 $11 10. e5 dxc3 (10... dxe5 11. fxe5 Qa5 12. exf6+ Kd8 13. Ne4 $11) 11. exf6+ Ne5 12. fxe5 Qa5) 10. Nf3 {[%emt 0:10:26]} (10. fxe5 $14 dxe5 11. Qf3 exd4 12. Bxf6 Nxf6 13. Qxf6 dxc3 14. Qxh8) 10... h6 {[%emt 0:13:56]} 11. Bxf6 {[%emt 0:18:28]} Nxf6 {[%emt 0:00:06]} 12. Qc4 $146 {[%emt 0:00:59]} ({Predecessor:} 12. g3 Bg7 13. Qd2 Bg4 14. Be2 O-O-O 15. Kb1 Kb8 16. h3 Be6 17. Qe3 Rc8 18. Rd2 {0-1 Adam,E (2036)-Zuriel,M (2165) ARG-ch (Women) 74th 2023 (9)}) 12... Qe7 {[%emt 0:14:02]} (12... Qb8 $11) 13. fxe5 {[%emt 0:04:48]} dxe5 {[%emt 0:00:06]} 14. Qa4+ $1 {[%emt 0:00:43]} Bd7 {[%emt 0:00:36]} 15. Bb5 {[%emt 0:05:11]} O-O-O $1 {[%emt 0:01:21]} 16. Bxd7+ {[%emt 0:14:49]} Nxd7 {[%emt 0:03:29]} 17. Nd5 {[%emt 0:02:45]} Qe6 {[%emt 0:01:58]} 18. Qa5 {[%emt 0:02:09]} ({White should play} 18. Qc4+ $16 Qc6 19. Nd2) 18... Bd6 $1 $11 {[%emt 0:00:47]} 19. Rd3 {[%emt 0:06:55]} Kb8 {[%emt 0:03:42]} (19... Nf6 $1 $11 {remains equal.}) 20. Rb3 {[%emt 0:00:42]} (20. Rhd1 $16 {[%cal Od5f4] aiming for Nf4!} Nc5 21. Rc3) 20... Nc5 $11 {[%emt 0:04:01]} 21. Rb6 $1 {[%emt 0:00:02]} Qd7 {[%emt 0:00:25]} (21... Rc8 $11 {should be considered.}) 22. b4 {[%emt 0:04:39]} (22. Nb4 $14) 22... Nxe4 $2 {[%emt 0:06:56]} (22... Qa4 $1 $15 {stays ahead.} 23. Rxb7+ (23. Qxa4 $2 Nxa4 24. Rxd6 Rxd6 $19) 23... Kxb7 24. Qb6+ Kc8) 23. Qxa6 {[%emt 0:00:08]} (23. Re1 $1 $16 {[%cal Re1e4]} f5 (23... Bc5 $2 24. bxc5 Qxd5 25. Rxe4 $18) 24. Qxa6) 23... Rc8 $2 {[%emt 0:00:08] [#]} (23... Bc5 $11 {and Black is okay.} 24. bxc5 Nxc5) 24. Re1 $1 $18 {[%emt 0:00:43]} f5 $2 {[%emt 0:01:01] [#]} (24... Nc5 25. bxc5 Bxc5) 25. Re3 $1 $18 {[%emt 0:00:24]} Qf7 {[%emt 0:02:51]} (25... Bc5 $142) 26. Qa5 $18 {[%emt 0:00:48]} Bc5 {[%emt 0:01:48]} 27. Rd3 {[%emt 0:00:35]} (27. bxc5 Rxc5 28. Qa6 (28. Nxe5 $2 Qxd5 29. Qb4 Qxe5 $19) 28... Qxd5 $14) 27... Rhd8 {[%emt 0:10:31]} 28. Nxe5 {[%emt 0:00:21]} Qxd5 {[%emt 0:01:47]} 29. Rxd5 {[%emt 0:00:20]} Rxd5 {[%emt 0:00:58]} 30. bxc5 {[%emt 0:00:43]} Rxe5 {[%emt 0:00:20]} 31. Rxb7+ {[%emt 0:00:32]} (31. Rxg6 Rexc5 32. Qa4 Nc3 $16) 31... Kxb7 {[%emt 0:00:06]} 32. c6+ $1 {[%emt 0:00:11]} Rxc6 {[%emt 0:00:05]} 33. Qxe5 {[%emt 0:00:03]} h5 {[%emt 0:00:16]} 34. Qb5+ {[%emt 0:00:27]} Kc7 {[%emt 0:00:32]} 35. a4 {[%emt 0:00:26]} Rb6 $2 {[%emt 0:05:30]} (35... Nc5 36. Kd2 Ne4+ 37. Kd3 Rc3+ 38. Kd4 Rc6 39. Qe5+ Rd6+ 40. Ke3 Nf6) 36. Qe5+ $18 {[%emt 0:00:14]} Kb7 {[%emt 0:00:31]} 37. a5 {[%emt 0:00:29]} Rd6 {[%emt 0:00:07]} 38. Qb5+ {[%emt 0:00:13]} Ka7 {[%emt 0:00:10]} 39. c4 {[%emt 0:00:56]} h4 {[%emt 0:01:22]} 40. h3 {[%emt 0:00:00]} (40. c5 $142 Rd1+ 41. Kc2 (41. Kxd1 $2 {too greedy.} Nc3+ 42. Kd2 Nxb5 $19) 41... Rd2+ 42. Kb3 Rd1 43. Qb6+ Ka8 44. Kc2 (44. Qxg6 Nxc5+ 45. Kc2 Rd7 $18) 44... Rd2+ 45. Kc1) 40... g5 {[%emt 0:00:00]} 41. Qxf5 {[%emt 0:03:02]} Rd4 {[%emt 0:07:40]} 42. Qe6 {[%emt 0:02:17]} Nd6 {[%emt 0:00:22]} 43. Qd7+ {[%emt 0:00:57]} Ka6 {[%emt 0:00:45]} 44. Qc6+ {[%emt 0:00:09]} Kxa5 {[%emt 0:00:29]} 45. Qc5+ {[%emt 0:00:07]} 1-0

[Event "Budapest Chess Festival 2024"]
[Site "Budapest"]
[Date "2024.05.29"]
[Round "7.10"]
[White "Juhasz, Agoston"]
[Black "Horvath, Adam"]
[Result "1-0"]
[ECO "B40"]
[WhiteElo "2431"]
[BlackElo "2448"]
[Annotator "RC"]
[PlyCount "115"]
[EventDate "2024.05.20"]
[EventType "swiss"]
[EventCountry "HUN"]
[SourceTitle "playchess.com"]
[Source "ChessBase"]
[SourceQuality "1"]
[TimeControl "40/5400+30:1800+30"]

1. e4 c5 {[%emt 0:02:54]} 2. Nf3 {[%emt 0:00:39]} e6 {[%emt 0:00:11]} 3. c3 {[%emt 0:00:32]} Nf6 {[%emt 0:01:39]} 4. e5 {[%emt 0:00:16]} Nd5 {[%emt 0:00:03]} 5. a3 {[%emt 0:00:44]} d6 {[%emt 0:09:03]} 6. d4 {[%emt 0:01:06]} cxd4 {[%emt 0:04:00]} 7. c4 {[%emt 0:00:40]} Ne7 {[%emt 0:09:07]} 8. exd6 {[%emt 0:01:00]} Qxd6 {[%emt 0:00:39]} 9. Nc3 {[%emt 0:00:53]} Nbc6 {[%emt 0:05:48]} 10. Nb5 {[%emt 0:00:48]} Qb8 {[%emt 0:05:42]} 11. Nfxd4 {[%emt 0:00:52]} Ng6 {[%emt 0:01:46]} 12. Be3 {[%emt 0:13:55]} Be7 {[%emt 0:05:11]} 13. g3 {[%emt 0:15:44]} O-O {[%emt 0:08:10]} 14. Bg2 {[%emt 0:02:39]} Rd8 {[%emt 0:21:37]} 15. Qe2 {[%emt 0:17:06]} Bd7 {[%emt 0:01:47]} 16. O-O {[%emt 0:05:50]} a6 {[%emt 0:11:40]} 17. Nc3 {[%emt 0:00:58]} Qe5 {[%emt 0:00:45]} 18. Nf3 {[%emt 0:09:01]} Qc7 {[%emt 0:01:49]} 19. Rac1 {[%emt 0:02:59]} Na5 {[%emt 0:01:08]} 20. Nd4 {[%emt 0:06:45]} Bf6 {[%emt 0:02:04]} 21. Ne4 {[%emt 0:08:13]} Bxd4 {[%emt 0:01:28]} 22. Bxd4 {[%emt 0:00:03]} Nb3 {[%emt 0:00:27]} 23. Rcd1 {[%emt 0:00:10]} Nxd4 {[%emt 0:01:47]} 24. Rxd4 {[%emt 0:00:03]} Bc6 {[%emt 0:00:28]} 25. Rfd1 {[%emt 0:00:52]} Rxd4 {[%emt 0:01:49]} 26. Rxd4 {[%emt 0:00:04]} h6 {[%emt 0:00:53]} 27. b4 {[%emt 0:02:26]} b6 {[%emt 0:00:54]} 28. c5 {[%emt 0:02:40]} Bd5 {[%emt 0:01:00]} 29. Qe3 {[%emt 0:04:14]} Ne7 {[%emt 0:00:37]} 30. cxb6 {[%emt 0:01:38]} Qxb6 {[%emt 0:00:07]} 31. Nf6+ {[%emt 0:01:09]} Kh8 {[%emt 0:00:04]} 32. Nxd5 {[%emt 0:01:33]} Nxd5 {[%emt 0:01:19]} 33. Bxd5 {[%emt 0:00:26]} Rd8 {[%emt 0:00:16]} 34. Rc4 {[%emt 0:00:45]} Qxe3 {[%emt 0:00:27]} 35. fxe3 {[%emt 0:00:02]} Rxd5 {[%emt 0:00:07]} 36. Rd4 {[%emt 0:01:12]} Re5 {[%emt 0:01:11]} 37. Kf2 {[%emt 0:00:31]} a5 {[%emt 0:00:09]} 38. Ke2 {[%emt 0:00:28]} Kh7 {[%emt 0:00:19]} 39. Kd3 {[%emt 0:00:19]} axb4 {[%emt 0:00:57]} 40. axb4 {[%emt 0:00:00]} Kg6 {[%emt 0:00:00]} 41. Rf4 {[%emt 0:11:25]} f5 {[%emt 0:04:50]} 42. Rf2 {[%emt 0:02:05]} Kf6 {[%emt 0:01:45]} 43. Rb2 {[%emt 0:00:31]} Rd5+ {[%emt 0:10:51]} 44. Kc3 {[%emt 0:02:21]} Re5 {[%emt 0:04:14]} 45. b5 {[%emt 0:07:11]} Rxe3+ {[%emt 0:00:29]} 46. Kd4 {[%emt 0:00:23]} Re5 {[%emt 0:04:37]} 47. b6 {[%emt 0:01:21]} Rd5+ {[%emt 0:00:03]} 48. Kc4 {[%emt 0:00:12]} Rd8 {[%emt 0:00:13]} 49. b7 {[%emt 0:00:44]} Rb8 {[%emt 0:00:04]} 50. Kc5 {[%emt 0:00:14]} g5 {[%emt 0:00:42]} 51. Kc6 {[%emt 0:00:45]} f4 {[%emt 0:01:26]} 52. gxf4 {[%emt 0:01:01]} gxf4 {[%emt 0:00:04]} 53. Kc7 {[%emt 0:00:30]} Rxb7+ {[%emt 0:06:38]} 54. Rxb7 {[%emt 0:00:09]} Kf5 {[%emt 0:01:09]} 55. Kd6 {[%emt 0:00:31]} f3 {[%emt 0:00:47]} 56. Rf7+ {[%emt 0:01:06]} Kg4 {[%emt 0:00:20]} 57. Ke5 {[%emt 0:00:59]} h5 {[%emt 0:00:04]} 58. Ke4 {[%emt 0:00:44]} 1-0

[Event "Budapest Chess Festival 2024"]
[Site "Budapest"]
[Date "2024.05.29"]
[Round "7.11"]
[White "Antal, Gergely"]
[Black "Shagbazyan, Taron"]
[Result "0-1"]
[ECO "B12"]
[WhiteElo "2586"]
[BlackElo "2403"]
[Annotator "RC"]
[PlyCount "92"]
[EventDate "2024.05.20"]
[EventType "swiss"]
[EventCountry "HUN"]
[SourceTitle "playchess.com"]
[Source "ChessBase"]
[SourceQuality "1"]
[TimeControl "40/5400+30:1800+30"]

1. e4 {[%emt 0:00:33]} c6 {[%emt 0:06:26]} 2. d4 {[%emt 0:00:19]} d5 {[%emt 0:00:06]} 3. e5 {[%emt 0:00:32]} Bf5 {[%emt 0:00:28]} 4. h4 {[%emt 0:00:11]} h5 {[%emt 0:00:16]} 5. Bd3 {[%emt 0:00:09]} Bxd3 {[%emt 0:00:25]} 6. Qxd3 {[%emt 0:00:03]} Qa5+ {[%emt 0:00:23]} 7. Nd2 {[%emt 0:01:13]} e6 {[%emt 0:00:28]} 8. Ngf3 {[%emt 0:01:11]} Nh6 {[%emt 0:01:07]} 9. O-O {[%emt 0:00:44]} Nf5 {[%emt 0:00:10]} 10. a4 {[%emt 0:01:10]} Qa6 {[%emt 0:01:28]} 11. c4 {[%emt 0:02:00]} Bb4 {[%emt 0:00:32]} 12. b3 {[%emt 0:04:03]} c5 {[%emt 0:03:28]} 13. Ba3 {[%emt 0:10:59]} Nc6 {[%emt 0:09:24]} 14. Bxb4 {[%emt 0:16:46]} cxb4 {[%emt 0:01:08]} 15. Qb1 {[%emt 0:11:21]} Ncxd4 {[%emt 0:08:49]} 16. cxd5 {[%emt 0:00:54]} exd5 {[%emt 0:07:53]} 17. Kh1 {[%emt 0:19:44]} O-O-O {[%emt 0:13:24]} 18. Nxd4 {[%emt 0:05:31]} Nxd4 {[%emt 0:00:16]} 19. Qb2 {[%emt 0:02:58]} Ne6 {[%emt 0:13:37]} 20. Nf3 {[%emt 0:00:53]} Qd3 {[%emt 0:02:44]} 21. a5 {[%emt 0:04:19]} a6 {[%emt 0:02:29]} 22. Rfd1 {[%emt 0:02:15]} Qe4 {[%emt 0:06:16]} 23. Qd2 {[%emt 0:00:34]} g5 {[%emt 0:01:26]} 24. Ra4 {[%emt 0:04:27]} gxh4 {[%emt 0:00:21]} 25. Rxb4 {[%emt 0:02:19]} d4 {[%emt 0:00:10]} 26. Re1 {[%emt 0:02:16]} Qd5 {[%emt 0:00:57]} 27. Nxh4 {[%emt 0:00:10]} Rhg8 {[%emt 0:01:58]} 28. f3 {[%emt 0:00:17]} Rg5 {[%emt 0:01:07]} 29. Nf5 {[%emt 0:00:26]} Rxf5 {[%emt 0:01:43]} 30. Qc2+ {[%emt 0:00:04]} Kb8 {[%emt 0:00:04]} 31. Qxf5 {[%emt 0:00:05]} Qxa5 {[%emt 0:00:02]} 32. Rxb7+ {[%emt 0:01:14]} Kxb7 {[%emt 0:00:02]} 33. Qxf7+ {[%emt 0:00:04]} Kb8 {[%emt 0:03:36]} 34. b4 {[%emt 0:01:14]} Qxb4 {[%emt 0:01:49]} 35. Ra1 {[%emt 0:04:20]} Qb6 {[%emt 0:00:26]} 36. Kh2 {[%emt 0:01:13]} d3 {[%emt 0:00:39]} 37. Qg6 {[%emt 0:00:03]} Ka7 {[%emt 0:02:10]} 38. Qf7+ {[%emt 0:00:54]} Ka8 {[%emt 0:01:18]} 39. f4 {[%emt 0:01:12]} d2 {[%emt 0:01:15]} 40. f5 {[%emt 0:00:00]} d1=Q {[%emt 0:00:00]} 41. Rxd1 {[%emt 0:00:25]} Rxd1 {[%emt 0:01:51]} 42. fxe6 {[%emt 0:00:04]} Qg1+ {[%emt 0:05:25]} 43. Kg3 {[%emt 0:01:40]} Qe1+ {[%emt 0:05:54]} 44. Kf4 {[%emt 0:02:28]} Qh4+ {[%emt 0:00:40]} 45. Ke3 {[%emt 0:01:00]} Qd4+ {[%emt 0:01:04]} 46. Ke2 {[%emt 0:00:04]} Qd3+ {[%emt 0:00:42]} 0-1

[Event "Budapest Chess Festival 2024"]
[Site "Budapest"]
[Date "2024.05.29"]
[Round "7.12"]
[White "Prohaszka, Peter"]
[Black "Iliaguev, Nisim"]
[Result "1-0"]
[ECO "E11"]
[WhiteElo "2581"]
[BlackElo "2397"]
[Annotator "TA"]
[PlyCount "71"]
[EventDate "2024.05.20"]
[EventType "swiss"]
[EventCountry "HUN"]
[SourceTitle "playchess.com"]
[Source "ChessBase"]
[SourceQuality "1"]
[TimeControl "40/5400+30:1800+30"]

{[%evp 12,71,19,13,18,-1,15,3,2,0,8,-6,16,7,13,0,0,0,49,47,50,43,53,51,62,31,40,51,41,36,42,43,83,46,77,76,61,19,56,49,81,96,83,61,182,193,251,235,338,264,703,568,576,579,537,589,586,584,1352,1222,29981,29982]} 1. d4 {[%emt 0:00:50]} Nf6 {[%emt 0:00:36]} 2. c4 {[%emt 0:00:21]} e6 {[%emt 0:00:08]} 3. Nf3 {[%emt 0:00:34]} Bb4+ {[%emt 0:00:12]} 4. Bd2 {[%emt 0:00:33]} Bxd2+ {[%emt 0:00:12]} 5. Qxd2 {[%emt 0:00:45]} d5 {[%emt 0:00:32]} 6. g3 {[%emt 0:07:26]} O-O {[%emt 0:01:18]} 7. Bg2 {[%emt 0:00:04]} c6 {[%emt 0:08:20]} 8. a4 {[%emt 0:13:29]} Ne4 {[%emt 0:11:32]} 9. Qc1 {[%emt 0:06:46]} a5 {[%emt 0:03:44] The position is equal.} 10. O-O {[%emt 0:02:26]} Na6 {[%emt 0:01:16]} 11. Nc3 {[%emt 0:02:53][%cal Bb1c3,Bc3e4,Be4d6][%mdl 32]} Nb4 {[%emt 0:01:38]} 12. Rd1 {[%emt 0:01:45]} Nd6 {[%emt 0:20:24]} 13. c5 {[%emt 0:07:38]} Nf5 {[%emt 0:01:31]} 14. e4 {[%emt 0:02:46]} dxe4 {[%emt 0:01:21]} (14... Ne7 $11 {should be considered.}) 15. Nxe4 $14 {[%emt 0:02:51]} b6 {[%emt 0:00:56]} 16. Qc3 {[%emt 0:14:34]} Ba6 {[%emt 0:03:42]} 17. Rd2 {[%emt 0:02:13] Prevents Be2.} Ne7 {[%emt 0:05:01]} 18. Nd6 {[%emt 0:03:03]} (18. cxb6 {keeps more tension.} Ned5 19. Qc5 Qxb6 20. Ne5) 18... Ned5 {[%emt 0:02:04]} 19. Qa3 {[%emt 0:00:49]} Rb8 {[%emt 0:06:43]} 20. Rc1 {[%emt 0:02:20]} Qe7 {[%emt 0:02:55]} 21. h4 {[%emt 0:01:05][%cal Bh2h4,Bh4h5][%mdl 32]} f6 {[%emt 0:03:48]} 22. Re1 {[%emt 0:01:09]} bxc5 {[%emt 0:02:08]} 23. dxc5 {[%emt 0:00:18] Strongly threatening Nd4.} Qa7 {[%emt 0:01:41]} 24. Rc1 {[%emt 0:05:44] White is more active.} (24. Rxe6 $5 Qxc5 25. Kh2 $14) 24... e5 {[%emt 0:02:26] Wards off Nd4} 25. Bh3 $1 {[%emt 0:00:04] Dodges Bc8} Kh8 {[%emt 0:00:35] [#]} 26. h5 $1 {[%emt 0:00:14]} Qe7 {[%emt 0:02:01]} 27. Bf5 {[%emt 0:01:12] Threatens to win with Nh4.} Qa7 {[%emt 0:04:02] [#] A mistake that costs the game.} (27... Bc8 $1 $14) 28. Nh4 $1 $18 {[%emt 0:02:03]} Ne7 {[%emt 0:01:16] Prevents Ng6+.} (28... Bc8 {was necessary.} 29. Bxc8 (29. Nxc8 Rbxc8 30. Bxc8 Rxc8 $18) 29... Rfxc8 30. Nxc8 Rxc8) 29. Be6 {[%emt 0:01:22]} Nbd5 {[%emt 0:00:24]} (29... Ng8 {is a better defense.} 30. Nhf5 Ne7) 30. Qf3 {[%emt 0:07:54]} Ng8 $2 {[%emt 0:08:37]} (30... Bc8) 31. Bxg8 {[%emt 0:06:56]} Kxg8 {[%emt 0:01:29]} 32. Rxd5 {[%emt 0:00:06]} cxd5 {[%emt 0:02:28]} 33. Qxd5+ {[%emt 0:00:02]} Rf7 {[%emt 0:00:14]} 34. Nhf5 {[%emt 0:01:39] Excellent horsemanship.} ({Stronger than} 34. Qxf7+ Qxf7 35. Nxf7 Kxf7 $11) 34... Rbf8 {[%emt 0:01:00]} 35. c6 {[%emt 0:00:52][%cal Bc5c6,Bc6c7][%mdl 32] c7! would now be deadly.} Bc8 {[%emt 0:00:41]} 36. c7 {[%emt 0:01:42] Weighted Error Value: White=0.12 (very precise) /Black=0.46.  Mistake:       	---       	Black=5      Inaccurate:     	White=3     	Black=5      OK:         	White=8     	Black=4      Best:        	---       	Black=3      Strong:       	White=3     	---} 1-0

[Event "Budapest Chess Festival 2024"]
[Site "Budapest"]
[Date "2024.05.29"]
[Round "7.13"]
[White "Borgaonkar, Akshay"]
[Black "Dragnev, Valentin"]
[Result "1/2-1/2"]
[ECO "C47"]
[WhiteElo "2372"]
[BlackElo "2566"]
[Annotator "TA"]
[PlyCount "81"]
[EventDate "2024.05.20"]
[EventType "swiss"]
[EventCountry "HUN"]
[SourceTitle "playchess.com"]
[Source "ChessBase"]
[SourceQuality "1"]
[TimeControl "40/5400+30:1800+30"]

{[%evp 16,81,5,8,0,0,22,12,9,0,0,0,0,0,0,0,17,10,12,0,0,-12,-4,0,0,-18,-24,-44,-40,-49,-23,-34,-24,-54,0,0,-23,-22,45,29,48,33,54,0,64,43,59,45,70,0,0,0,12,44,25,18,18,0,0,0,0,0,0,0,0,0,0,0]} 1. e4 {[%emt 0:00:33]} e5 {[%emt 0:00:39]} 2. Nf3 {[%emt 0:00:08]} Nc6 {[%emt 0:00:08]} 3. Nc3 {[%emt 0:00:08]} Nf6 {[%emt 0:00:23]} 4. d4 {[%emt 0:00:07]} exd4 {[%emt 0:00:14]} 5. Nxd4 {[%emt 0:00:07]} Bb4 {[%emt 0:00:15]} 6. Nxc6 {[%emt 0:00:09]} bxc6 {[%emt 0:00:30]} 7. Bd3 {[%emt 0:00:11]} d5 {[%emt 0:00:50]} 8. Bd2 {[%emt 0:00:16]} O-O {[%emt 0:00:12]} 9. O-O {[%emt 0:00:06]} Rb8 {[%emt 0:00:19]} 10. Re1 {[%emt 0:00:56]} Bg4 {[%emt 0:01:55]} 11. Qc1 {[%emt 0:02:35]} Re8 {[%emt 0:01:56]} 12. exd5 {[%emt 0:10:24]} (12. Bg5 {is interesting.} h6 13. Bh4 Qd6 14. exd5 Rxe1+ 15. Qxe1 cxd5 16. Bxf6 Qxf6 17. Nxd5 Bxe1 18. Nxf6+ gxf6 19. Rxe1 Rxb2 20. f4) 12... Rxe1+ {[%emt 0:02:19]} 13. Qxe1 {[%emt 0:00:20]} cxd5 {[%emt 0:00:12]} 14. h3 {[%emt 0:04:51]} Be6 {[%emt 0:01:24]} 15. b3 {[%emt 0:03:10]} Bf8 {[%emt 0:01:50]} 16. Ne2 {[%emt 0:06:06]} c5 {[%emt 0:01:41]} 17. Nf4 {[%emt 0:01:59]} Bc8 {[%emt 0:00:10]} 18. Rd1 {[%emt 0:07:56]} Bb7 {[%emt 0:01:32]} 19. c4 {[%emt 0:08:04]} d4 {[%emt 0:01:12]} 20. Ne2 {[%emt 0:06:09]} Qb6 {[%emt 0:02:31]} 21. Ng3 {[%emt 0:05:08]} Re8 {[%emt 0:05:00]} 22. Qf1 {[%emt 0:00:08]} a5 {[%emt 0:00:05]} 23. Re1 {[%emt 0:02:35]} Ra8 {[%emt 0:00:40]} 24. Bg5 {[%emt 0:02:40]} a4 {[%emt 0:17:57]} 25. Rb1 {[%emt 0:06:32] Black must now prevent bxa4.} Nd7 {[%emt 0:03:16]} 26. bxa4 {[%emt 0:01:43]} Qa6 {[%emt 0:00:46] [#]} (26... Qc7 $1 $11) 27. a5 $1 $14 {[%emt 0:04:36][%cal Ob1b7]} Re8 {[%emt 0:07:32][%cal Ob7c6]} 28. Re1 $1 {[%emt 0:01:54]} Ra8 {[%emt 0:02:51]} 29. Rb1 {[%emt 0:01:54]} (29. Bd2 $14) 29... Bc6 {[%emt 0:21:46]} (29... Re8 $1 $11) 30. Bd2 {[%emt 0:00:54] White is more active.} g6 {[%emt 0:00:06]} 31. Qe2 {[%emt 0:02:52] Inhibits Re8.} Bd6 {[%emt 0:00:46]} 32. f4 {[%emt 0:04:56]} ({White should play} 32. Bf5 $14 Qc8 (32... gxf5 $2 {too greedy.} 33. Nxf5 Bf8 34. Nh6+ Bxh6 35. Bxh6 $18) 33. Rb6) 32... Bc7 $11 {[%emt 0:12:48]} 33. Qe7 {[%emt 0:04:46]} Bxa5 {[%emt 0:00:18]} 34. Bxa5 {[%emt 0:01:21]} Qxa5 {[%emt 0:00:03]} 35. Be4 {[%emt 0:02:30]} Qc7 {[%emt 0:01:29] The position is equal.} ({Don't play} 35... Qxa2 36. Re1 Qa4 (36... Bxe4 $2 37. Nxe4 Ra7 38. f5 $18) 37. f5 $14) 36. Bxc6 {[%emt 0:01:52]} Qxc6 {[%emt 0:00:01]} 37. Ne4 {[%emt 0:00:16] [#] And now Nd6 would win.} Rxa2 {[%emt 0:02:11] aiming for ...Kg7.} 38. Rb8+ {[%emt 0:01:08]} Nxb8 {[%emt 0:06:47]} 39. Nf6+ {[%emt 0:00:07]} Kg7 {[%emt 0:00:06][%csl Ga2][%cal Rc6g2]} 40. Ne8+ {[%emt 0:00:00]} Kg8 {[%emt 0:00:00][%csl Ga2][%cal Rc6g2]} 41. Nf6+ {[%emt 0:00:09] Weighted Error Value: White=0.09 (flawless) /Black=0.15 (very precise) .  Mistake:       	White=2     	Black=2      Inaccurate:     	White=1     	Black=2      OK:         	White=10    	Black=11     Best:        	White=4     	Black=4      Strong:       	White=1     	---        Brilliant:      	White=1     	---} 1/2-1/2

[Event "Budapest Chess Festival 2024"]
[Site "Budapest"]
[Date "2024.05.29"]
[Round "7.14"]
[White "Teclaf, Pawel"]
[Black "Nguyen, Piotr"]
[Result "1-0"]
[ECO "A05"]
[WhiteElo "2568"]
[BlackElo "2402"]
[Annotator "TA"]
[PlyCount "73"]
[EventDate "2024.05.20"]
[EventType "swiss"]
[EventCountry "HUN"]
[SourceTitle "playchess.com"]
[Source "ChessBase"]
[SourceQuality "1"]
[TimeControl "40/5400+30:1800+30"]

{[%evp 21,73,74,87,68,66,67,114,112,123,86,72,87,77,91,83,76,83,75,83,79,87,79,109,83,87,83,144,150,155,154,158,159,171,160,171,183,276,256,338,306,512,507,722,758,761,762,863,860,889,855,29976,29977,29975,29970]} 1. Nf3 {[%emt 0:06:03]} Nf6 {[%emt 0:00:48]} 2. c4 {[%emt 0:00:06]} g6 {[%emt 0:01:14]} 3. Nc3 {[%emt 0:00:50]} Bg7 {[%emt 0:00:16]} 4. g3 {[%emt 0:00:05]} d6 {[%emt 0:06:37]} 5. Bg2 {[%emt 0:03:14]} c5 {[%emt 0:04:07]} 6. O-O {[%emt 0:07:00]} O-O {[%emt 0:02:15]} 7. d4 {[%emt 0:02:56]} cxd4 {[%emt 0:01:32]} 8. Nxd4 {[%emt 0:00:04]} Nc6 {[%emt 0:00:08]} 9. Nxc6 {[%emt 0:03:27]} bxc6 {[%emt 0:00:05]} 10. Bxc6 {[%emt 0:00:03]} Bh3 {[%emt 0:00:12]} 11. Bxa8 {[%emt 0:08:52]} Qxa8 {[%emt 0:00:37] [#]} 12. f3 $1 {[%emt 0:00:04]} Bxf1 {[%emt 0:00:24]} 13. Kxf1 {[%emt 0:03:35]} Rc8 {[%emt 0:10:32]} (13... Qc8 $14) 14. Qd3 $16 {[%emt 0:06:58] White is better.} Qb7 {[%emt 0:08:05]} 15. Be3 {[%emt 0:05:18]} Qxb2 {[%emt 0:37:20]} 16. Rb1 {[%emt 0:02:45]} Qa3 {[%emt 0:00:04][%cal Of6g4]} 17. Nd5 {[%emt 0:00:06]} Qxd3 {[%emt 0:00:14]} 18. Nxf6+ {[%emt 0:00:04]} Bxf6 19. exd3 {[%emt 0:00:04][%mdl 4096] Endgame. KRB-KRB} a5 {[%emt 0:03:00]} 20. Rb5 {[%emt 0:06:13]} Bc3 {[%emt 0:02:09]} 21. Ke2 {[%emt 0:04:22]} a4 {[%emt 0:03:18]} 22. Kd1 {[%emt 0:04:56]} f5 {[%emt 0:07:25]} 23. Kc2 {[%emt 0:02:30]} Be1 {[%emt 0:01:02]} ({Better is} 23... Bf6) 24. Rb1 {[%emt 0:04:41]} Ba5 {[%emt 0:00:06] [#]} 25. Rb7 $1 {[%emt 0:00:02]} Kf7 {[%emt 0:01:55]} 26. Ra7 {[%emt 0:00:54] White is more active.} Be1 {[%emt 0:01:17]} 27. Rxa4 {[%emt 0:02:14]} h5 {[%emt 0:01:16]} 28. Ra7 {[%emt 0:04:00]} Kf6 {[%emt 0:00:46]} (28... d5 {keeps fighting.} 29. Bg5 Bb4) 29. a4 $18 {[%emt 0:01:44][%cal Ba2a4,Ba4a5,Ba5a6][%mdl 32] And now a5 would win.} g5 {[%emt 0:01:17][%cal Bg6g5,Bg5f4][%mdl 32]} 30. a5 {[%emt 0:01:41]} d5 $2 {[%emt 0:01:44]} (30... e5 31. a6 Bb4) 31. a6 {[%emt 0:04:00]} f4 {[%emt 0:04:53]} 32. gxf4 {[%emt 0:00:56]} gxf4 {[%emt 0:00:04]} 33. Bb6 {[%emt 0:00:57]} dxc4 {[%emt 0:01:34]} 34. Rc7 {[%emt 0:02:10]} cxd3+ {[%emt 0:00:36]} 35. Kxd3 {[%emt 0:00:06]} Rxc7 {[%emt 0:00:36]} 36. Bxc7 {[%emt 0:00:05]} Bf2 {[%emt 0:00:03]} 37. Bxf4 {[%emt 0:00:03] Weighted Error Value: White=0.03 (flawless) /Black=0.73.  Mistake:       	---       	Black=4      Inaccurate:     	White=1     	Black=3      OK:         	White=16    	Black=8      Best:        	White=1     	Black=3} 1-0